Cogmind - Beta 17 @@@ ROGUE MODE // 2026.07.05 @ 23:51:29 Player: Robbedoes2000 Result: Self-destructed Performance ------------- Evolutions (2) 1000 Regions Visited (5) 1000 Robots Destroyed (21) 105 Value Destroyed (529) 529 Prototype IDs (26) 520 Alien Tech Used (0) 0 Bonus (300) 300 TOTAL SCORE: 3454 Bonus ------- Aligned with FarCom 300 Cogmind --------- Core Integrity 313/550 Matter 242/300 Energy 54/100 System Corruption 13% Temperature Cool (0) Movement Core (400) Ox7 Location -8/Materials Parts ------- > --- POWER (2) -------- (None) > --- PROPULSION (3) --- (None) > --- UTILITY (4) ------ Small Storage Unit ECM Suite Power Shielding Hacking Suite > --- WEAPON (2) ------- Latent Energy Streamer Rocket Launcher > --- INVENTORY (8) ---- Light Deuterium Engine Small Storage Unit Sensor Array Improved Light Armor Plating Improved Assault Rifle Peak State ------------ > --- POWER ------------ Ion Engine Light Nuclear Core > --- PROPULSION ------- Aluminum Leg Aluminum Leg Aluminum Leg > --- UTILITY ---------- Small Storage Unit Large Battery Recoil Stabilizer Hacking Suite > --- WEAPON ----------- Latent Energy Streamer Flak Cannon > --- INVENTORY -------- Light Deuterium Engine Small Storage Unit Sensor Array ECM Suite Improved Light Armor Plating Heavy EM Shotgun Improved Assault Rifle Rocket Launcher [Rating: 29] Favorites ----------- Power Ion Engine Engine Ion Engine Power Core Light Nuclear Core Propulsion Aluminum Leg Leg Aluminum Leg Flight Unit Cesium-ion Thruster Utility Small Storage Unit Device Sensor Array Storage Small Storage Unit Hackware Hacking Suite Protection Power Shielding Weapon Light Assault Rifle Energy Gun EM Pulse Gun Energy Cannon Latent Energy Streamer Ballistic Gun Light Assault Rifle Ballistic Cannon Flak Cannon Launcher Rocket Launcher Build | -11 -10 -10 -10 -9 -8 ------- Run | Yrd Mat Min Exi Min Mat Slots Evolved 4 | . . . . . 4 Power 1 | . . . . . 1 Propulsion 1 | . . . . . 1 Utility 2 | . . . . . 2 Weapon . | . . . . . . Parts Attached 30 | 8 3 2 2 . 15 Power 4 | 1 . 1 1 . 1 Engine 3 | 1 . 1 1 . . Core 1 | . . . . . 1 Reactor . | . . . . . . Propulsion 5 | 2 . . . . 3 Treads . | . . . . . . Leg 3 | 2 . . . . 1 Wheel . | . . . . . . Hover . | . . . . . . Flight 2 | . . . . . 2 Utility 12 | 2 3 1 . . 6 Device 6 | 2 1 1 . . 2 Storage 2 | . 1 . . . 1 Processor . | . . . . . . Hackware 1 | . . . . . 1 Protection 3 | . 1 . . . 2 Artifact . | . . . . . . Weapon 9 | 3 . . 1 . 5 Energy Gun 3 | 1 . . . . 2 Energy Cannon 1 | . . . 1 . . Ballistic Gun 3 | 2 . . . . 1 Ballistic Cannon 1 | . . . . . 1 Launcher 1 | . . . . . 1 Special Weapon . | . . . . . . Impact Weapon . | . . . . . . Slashing Weapon . | . . . . . . Piercing Weapon . | . . . . . . Special Melee Weapon . | . . . . . . Unidentified Prototypes 3 | . . . . . 3 Parts Lost 6 | . . 1 . . 5 Power 2 | . . . . . 2 Propulsion 3 | . . . . . 3 Utility . | . . . . . . Weapon 1 | . . 1 . . . Highest Loss Streak 5 | . . 1 . . 5 To Critical Strikes . | . . . . . . Average Backups 6 | 3 6 7 7 8 6 Power . | . 1 1 1 1 1 Propulsion . | 1 1 1 1 1 . Utility 4 | . 3 5 5 5 3 Weapon . | . 1 . . 1 2 Tool/Special . | . . . . . . Unused Backups 7 | . 3 . . . 4 Power 1 | . . . . . 1 Propulsion 2 | . 2 . . . . Utility 4 | . 1 . . . 3 Weapon . | . . . . . . Tool/Special . | . . . . . . Average Slot Usage (%) 92 | . 100 100 97 85 83 Engine 11 | . 14 14 14 14 7 Core 2 | . . . . . 6 Leg 26 | . 28 28 28 28 22 Device 12 | . 20 14 14 14 8 Storage 14 | . 7 14 14 14 16 Hackware 2 | . . . . . 6 Energy Gun 2 | . 14 8 . . 3 Energy Cannon 5 | . . . 2 14 9 Ballistic Gun 12 | . 14 19 23 . . Peak Build Rating 29 | 9 9 8 17 15 29 Average Rating 13 | 4 8 7 8 15 23 On Entrance 9 | . 9 8 7 15 15 Avg Prop Armor Cover (%) . | . . . . . . Naked Turns . | . . . . . . Heaviest Build 34 | 10 15 15 23 19 34 Greatest Support 30 | 20 20 20 20 20 30 Greatest Overweight (x) 7 | 1 . . 1 . 7 Average Overweight (x) . | . . . . . . Largest Inventory Capacity 8 | 5 8 8 8 8 8 Average Capacity 7 | 5 6 8 8 8 8 Most Carried 8 | 5 8 8 8 8 8 Average Carried 6 | 3 6 7 7 8 6 Final Capacity 8 | 5 8 8 8 8 8 Final Carried 8 | 5 8 7 8 8 5 Class Distribution -------------------- 96% | Mutant 3% | Skirmisher Dominant Class ---------------- Mutant | -10/Materials Mutant | -10/Mines Mutant | -10/Exiles Mutant | -9/Mines Mutant | -8/Materials Resources | -11 -10 -10 -10 -9 -8 ----------- Run | Yrd Mat Min Exi Min Mat Matter Collected 657 | 280 45 55 . . 277 Remotely . | . . . . . . Salvage Created 659 | 95 121 24 . . 419 Parts 45 | 13 6 . . . 26 Haulers Intercepted 1 | . 1 . . . . Recyclers Shooed . | . . . . . . Parts Field Recycled . | . . . . . . Retrieved Matter . | . . . . . . Parts Self-Destructed . | . . . . . . Prevented . | . . . . . . Parts Restored . | . . . . . . Kills | -11 -10 -10 -10 -9 -8 ------- Run | Yrd Mat Min Exi Min Mat Combat Hostiles Destroyed 16 | . 2 2 . . 12 Guns 6 | . . 2 . . 4 Cannons 1 | . . . . . 1 AOE 9 | . 2 . . . 7 Classes Destroyed 9 | 1 2 1 . . 5 Builder 1 | . . . . . 1 Tunneler 4 | 4 . . . . . Hauler 1 | . 1 . . . . Watcher 1 | . . . . . 1 Swarmer 5 | . . . . . 5 Grunt 5 | . 2 . . . 3 Sentry 3 | . . . . . 3 Hunter 1 | . . . . . 1 Assembled 2 | . . 2 . . . Best Kill Streak 6 | 2 3 2 . . 6 Combat Bots Only 6 | . 2 2 . . 6 Max Kills in Single Turn 3 | 1 2 1 . . 3 Gunslinging . | . . . . . . Exploded 3 | . 2 . . . 3 Melee . | . . . . . . Uniques/NPCs Destroyed . | . . . . . . Combat | -11 -10 -10 -10 -9 -8 -------- Run | Yrd Mat Min Exi Min Mat Hostile Shots Fired 128 | . 21 6 . . 101 Missed 33 | . 6 3 . . 24 Hits 95 | . 15 3 . . 77 Projectile 95 | . 15 3 . . 77 Critical Strikes 2 | . . . . . 2 Damage Taken 1020 | . 152 43 . . 825 Core 276 | . 39 . . . 237 Absorbed by Shields . | . . . . . . Redirected to Shielding 5 | . . . . . 5 Core Remaining (%) 92 | 100 . . . 84 . Volleys Fired 49 | 10 7 6 2 . 24 Largest 2 | 1 2 2 2 . 1 Hottest 60 | 40 60 60 40 . 60 Shots Fired 64 | 10 14 12 4 . 24 Gun 53 | 10 14 12 4 . 13 Cannon 8 | . . . . . 8 Launcher 3 | . . . . . 3 Special . | . . . . . . Kinetic 21 | . 7 10 4 . . Thermal . | . . . . . . Explosive 3 | . . . . . 3 Electromagnetic 40 | 10 7 2 . . 21 Robot Hit Streak 12 | 6 12 4 . . 6 Robot Miss Streak 3 | 1 1 3 . . 2 Penetration Max . | . . . . . . Secondary Targets . | . . . . . . Shots Hit Robots 48 | 9 12 6 . . 21 Core Hits 38 | 4 5 3 . . 26 Critical Kills . | . . . . . . Critical Parts Destroyed . | . . . . . . Critical Strikes 2 | 2 . . . . . Corrupt 2 | 2 . . . . . Melee Attacks . | . . . . . . Impact . | . . . . . . Slashing . | . . . . . . Piercing . | . . . . . . Sneak Attacks . | . . . . . . Combat Hostiles . | . . . . . . Follow-up Attacks . | . . . . . . Damage Inflicted 1458 | 121 209 50 . . 1078 Guns 517 | 121 114 50 . . 232 Cannons 38 | . . . . . 38 Explosions 903 | . 95 . . . 808 Melee . | . . . . . . Ramming . | . . . . . . Kinetic 88 | . 38 50 . . . Thermal 95 | . 95 . . . . Explosive 471 | . . . . . 471 Electromagnetic 804 | 121 76 . . . 607 Impact . | . . . . . . Slashing . | . . . . . . Piercing . | . . . . . . Highest Corruption 13 | . . . . . 13 Average Corruption 10 | . . . . . 10 Corruption Purged . | . . . . . . Corruption Blocked . | . . . . . . Effects 17 | . . . . . 17 Message Errors 1 | . . . . . 1 Matter Fused 6 | . . . . . 6 Heat Flow Errors 2 | . . . . . 2 Energy Discharges 1 | . . . . . 1 Parts Rejected 2 | . . . . . 2 Data Loss (minor) 2 | . . . . . 2 Alerts 2 | . . . . . 2 Misdirections 1 | . . . . . 1 Overload Shots . | . . . . . . Overflow Damage 12 | . . . . . 12 Projectiles . | . . . . . . Explosions 12 | . . . . . 12 Melee . | . . . . . . Knockbacks . | . . . . . . Impact . | . . . . . . Kinetic . | . . . . . . Secondary . | . . . . . . Self-Inflicted Damage 134 | . 18 . . . 116 Shots 6 | . 1 . . . 5 Rammed . | . . . . . . Targets Rammed . | . . . . . . Kicked . | . . . . . . Crushed . | . . . . . . Highest Temperature 268 | . 88 20 . . 268 Average Temperature 50 | . 48 12 . . 53 Received Heat Transfer 69 | . 42 . . . 27 Siege Activations . | . . . . . . Martial Activations . | . . . . . . Shielding Activations . | . . . . . . Robots Disrupted . | . . . . . . Combat Hostiles . | . . . . . . Robots Corrupted . | . . . . . . Combat Hostiles . | . . . . . . Parts Fried 4 | 1 . . . . 3 Impact Corruptions . | . . . . . . Robots Melted . | . . . . . . Combat Hostiles . | . . . . . . Parts Melted . | . . . . . . Heat Transferred 100 | . 100 . . . . Parts Sabotaged . | . . . . . . Parts Stolen . | . . . . . . Parts Stripped . | . . . . . . Power Chain Reactions 1 | . 1 . . . . Latent Energy Used 574 | . . . . . 574 LE Corruption 13 | . . . . . 13 Alert | -11 -10 -10 -10 -9 -8 ------- Run | Yrd Mat Min Exi Min Mat Maximum Alert Level . | . . . . . . Low Security (%) 100 | 100 100 100 . 100 100 Level 1 . | . . . . . . Level 2 . | . . . . . . Level 3 . | . . . . . . Level 4 . | . . . . . . Level 5 . | . . . . . . High Security . | . . . . . . Max Security . | . . . . . . Peak Influence 172 | 5 65 1 . . 172 Initial 1 | . . 1 . . . Average 29 | . 25 . . . 51 Influence Increases 478 | 20 65 . . . 393 Destroy 0b10 Robot/C 280 | . 40 . . . 240 Destroy 0b10 Robot/NC 35 | 20 5 . . . 10 Destroy Leader 74 | . 2 . . . 72 Successful Hack 3 | . . . . . 3 Disable Machine 30 | . 15 . . . 15 Destroy Structure 41 | . 3 . . . 38 Lose Combat Pursuer 15 | . . . . . 15 Influence Decreases 344 | 20 60 5 . . 259 Entered New Map 4 | . . 4 . . . Time Decay 290 | 20 60 1 . . 209 Lost Part 50 | . . . . . 50 Squads Dispatched 2 | . . . . . 2 Investigation . | . . . . . . Extermination . | . . . . . . Reinforcement 2 | . . . . . 2 Assault . | . . . . . . Garrison . | . . . . . . Intercept . | . . . . . . Searches Triggered . | . . . . . . Construction Impeded 1 | . . . . . 1 Haulers Reinforced . | . . . . . . Active Scanning Responses . | . . . . . . Cargo Convoy Interrupts . | . . . . . . Stealth | -11 -10 -10 -10 -9 -8 --------- Run | Yrd Mat Min Exi Min Mat Distress Signals 4 | . 1 . . . 3 Communications Jammed . | . . . . . . Distress Signals . | . . . . . . Times Spotted 39 | . 11 2 . . 26 Peak Tracking Total 8 | . 8 2 . . 7 Tactical Retreats 4 | . . . . . 4 ECM-based Alert Blocks 7 | . . . . . 7 Traps | -11 -10 -10 -10 -9 -8 ------- Run | Yrd Mat Min Exi Min Mat Traps Triggered . | . . . . . . Indirectly . | . . . . . . Trap Hack Attempts . | . . . . . . Triggered . | . . . . . . Disarmed . | . . . . . . Reprogrammed . | . . . . . . Reused . | . . . . . . Traps Extracted . | . . . . . . Installed . | . . . . . . Triggered . | . . . . . . Machines | -11 -10 -10 -10 -9 -8 ---------- Run | Yrd Mat Min Exi Min Mat Machines Disabled 2 | . 1 . . . 1 Max in Single Turn 1 | . 1 . . . 1 Machines Repaired . | . . . . . . Machines Dismantled . | . . . . . . Machines Sabotaged . | . . . . . . Overloaded Fab Kills . | . . . . . . Hacking | -11 -10 -10 -10 -9 -8 --------- Run | Yrd Mat Min Exi Min Mat Machines Accessed 9 | . 1 . 5 . 3 Terminals 3 | . 1 . . . 2 Fabricators . | . . . . . . Repair Stations . | . . . . . . Recycling Units . | . . . . . . Scanalyzers 1 | . . . . . 1 Garrison Access . | . . . . . . Total Hacks 58 | . 2 . 50 . 6 Successful 54 | . 2 . 50 . 2 Failed 4 | . . . . . 4 Catastrophic . | . . . . . . Database Lockouts . | . . . . . . Manual 1 | . . . 1 . . Terminals 6 | . 2 . . . 4 Fabricators . | . . . . . . Repair Stations . | . . . . . . Recycling Units . | . . . . . . Scanalyzers 2 | . . . . . 2 Garrison Access . | . . . . . . Terminal Hacks 53 | . 2 . 50 . 1 Record 49 | . . . 49 . . Emergency Access Points 1 | . 1 . . . . Dispatch Records 1 | . 1 . . . . Maintenance Status 1 | . . . . . 1 Proto ID Catalog 1 | . . . 1 . . Fabricator Hacks . | . . . . . . Repair Station Hacks . | . . . . . . Recycling Unit Hacks . | . . . . . . Scanalyzer 1 | . . . . . 1 Retrieve Study 1 | . . . . . 1 Garrison Access Hacks . | . . . . . . Unauthorized Hacks . | . . . . . . Terminals . | . . . . . . Fabricators . | . . . . . . Repair Stations . | . . . . . . Recycling Units . | . . . . . . Scanalyzers . | . . . . . . Garrison Access . | . . . . . . Data Cores Recovered . | . . . . . . Used . | . . . . . . Hacking Detections 3 | . . . . . 3 Full Trace Events . | . . . . . . Feedback Events . | . . . . . . Feedback Blocked . | . . . . . . Robot Schematics Acquired . | . . . . . . Robots Built . | . . . . . . Authchips . | . . . . . . Time . | . . . . . . Total Robot Build Rating . | . . . . . . Part Schematics Acquired . | . . . . . . Parts Built . | . . . . . . Authchips . | . . . . . . Time . | . . . . . . Total Part Build Rating . | . . . . . . Part Studies Acquired 1 | . . . . . 1 Parts Repaired . | . . . . . . Time . | . . . . . . Parts Recycled . | . . . . . . Recycled Matter . | . . . . . . Retrieved Matter . | . . . . . . Retrieved Components . | . . . . . . Parts Scanalyzed . | . . . . . . Part Schematics Acquired . | . . . . . . Parts Damaged . | . . . . . . Bothacking | -11 -10 -10 -10 -9 -8 ------------ Run | Yrd Mat Min Exi Min Mat Used RIF Installer . | . . . . . . Robots Hacked . | . . . . . . Non-combat . | . . . . . . Combat . | . . . . . . Robot Hacks Applied . | . . . . . . Relay Couplers Released . | . . . . . . Fabnet Peak Effective % . | . . . . . . Robots Rewired . | . . . . . . Allies Hacked . | . . . . . . Hacks Repelled . | . . . . . . Allies | -11 -10 -10 -10 -9 -8 -------- Run | Yrd Mat Min Exi Min Mat Total Allies . | . . . . . . Largest Group . | . . . . . . Highest-Rated Group . | . . . . . . Highest-Rated Ally . | . . . . . . Total Orders . | . . . . . . Ally Attacks . | . . . . . . Total Damage . | . . . . . . Kills . | . . . . . . Allies Corrupted . | . . . . . . Allies Melted . | . . . . . . Intel | -11 -10 -10 -10 -9 -8 ------- Run | Yrd Mat Min Exi Min Mat Active Infowar (turns) 2296 | 62 171 227 917 208 711 Sensors 1595 | . . 193 917 208 277 Terrain 145 | 8 137 . . . . Seismic 130 | 62 68 . . . . ECM 502 | . 34 34 . . 434 Robot Analysis Total . | . . . . . . Derelict Logs Recovered 1 | . . . . 1 . Drone Launches . | . . . . . . Drone Recoveries . | . . . . . . Exploration | -11 -10 -10 -10 -9 -8 ------------- Run | Yrd Mat Min Exi Min Mat Turns Passed 2483 | 146 171 227 917 208 814 Spaces Moved 1626 | 96 114 95 743 163 415 Core 40 | 14 . . . . 26 Treads . | . . . . . . Legs 1586 | 82 114 95 743 163 389 Wheels . | . . . . . . Hover . | . . . . . . Flight . | . . . . . . Fastest Speed 50 | 50 120 120 120 120 120 Average Speed 127 | 112 120 120 120 120 151 Slowest Speed 400 | 120 120 120 190 120 400 Overloaded Moves . | . . . . . . Propulsion Burnouts . | . . . . . . Robots Hopped . | . . . . . . Potential Cave-ins . | . . . . . . Cave-ins Triggered . | . . . . . . Exploration Rate (%) 37 | 4 32 27 93 37 32 Regions Visited 5 Branch Regions 3 Pre-discovered Areas 2 | . . . 1 1 . Known Exits Taken . | . . . . . . Unknown Exits Taken 5 | 1 1 1 1 1 . Scrap Searched . | . . . . . . Spaces Dug 17 | . . . . . 17 Terrain Destroyed 40 | . 3 . . . 37 Melee . | . . . . . . Projectile . | . . . . . . AOE 40 | . 3 . . . 37 Terrain Rammed . | . . . . . . Walls Destroyed . | . . . . . . Machines Disabled . | . . . . . . Actions | -11 -10 -10 -10 -9 -8 --------- Run | Yrd Mat Min Exi Min Mat Total 1968 | 119 136 196 760 176 581 Wait 202 | . 1 93 4 12 92 Move 1621 | 95 113 94 742 162 415 Hop . | . . . . . . Pick Up 22 | 5 7 . 3 1 6 Fast Attach 18 | 7 . . 1 . 10 Attach 17 | . 1 1 1 . 14 Detach 9 | . . . 1 . 8 Swap 8 | 2 3 2 1 . . Drop 21 | . 4 . 4 1 12 Fire 49 | 10 7 6 2 . 24 Melee . | . . . . . . Ram . | . . . . . . Kick . | . . . . . . Crush . | . . . . . . Escape Stasis . | . . . . . . Rewire 1 | . . . 1 . . Trap . | . . . . . . Miscellaneous . | . . . . . . Route ------- -11/Scrapyard -10/Materials -10/Mines -10/Exiles (discovered 2 exits: [*Min x2]) -9/Mines (discovered 2 exits: *Mat x2) -8/Materials History --------- Turn | Location | Event 6 | -11/Scrapyard | Discovered new exit (range 15) 147 | -11/Scrapyard | Entered Materials 297 | -10/Materials | Discovered new exit (range 12) 305 | -10/Materials | Build established: Mutant 318 | -10/Materials | Entered Mines 328 | -10/Mines | Assembled infested the area 540 | -10/Mines | Deemed a non-threat by the Exiles lab entrance 540 | -10/Mines | Discovered new exit (range 5) 545 | -10/Mines | Entered Exiles 572 | -10/Exiles | Discovered new exit (range 15) 627 | -10/Exiles | Met 8R-AWN 652 | -10/Exiles | Met EX-HEX 704 | -10/Exiles | Met EX-BIN 722 | -10/Exiles | Met EX-DEC 743 | -10/Exiles | Learned location of Zion (-7) 814 | -10/Exiles | Visited The Gauntlet 1027 | -10/Exiles | Discovered new exit (range 14) 1282 | -10/Exiles | Aligned with FarCom system 1283 | -10/Exiles | Given EX-Vault access code 1312 | -10/Exiles | Opened EX-Vault 1318 | -10/Exiles | Found Latent Energy Streamer 1355 | -10/Exiles | Warned to stay clear of 0b10 Research branches 1462 | -10/Exiles | Left Exiles lab with Latent Energy Streamer 1462 | -10/Exiles | Entered Mines 1462 | -9/Mines | Discovered new exit (range 13) 1631 | -9/Mines | Discovered new exit (range 8) 1638 | -9/Mines | Received a Rocket Launcher from a helpful Derelict 1670 | -9/Mines | Entered Materials 1670 | -8/Materials | Evolved 4 slots: Power x1, Propulsion x1, Utility x2 2201 | -8/Materials | System corruption reached 10% 2391 | -8/Materials | Lost 5 parts (2p3n) 2484 | -8/Materials | Self-destructed Last Messages --------------- 02386_ The unstable cave ceiling collapses. 02386_ U-05 Engineer lays Concrete. 02388_ U-05 Engineer builds a Wall. 02392_ Acquired 10 matter. 02397_ U-05 Engineer lays Concrete. 02398_ System corrupted: FCS attempts to trigger Latent Energy Streamer. 02400_ Acquired 31 matter. 02401_ U-05 Engineer builds a Wall. 02403_ U-05 Engineer lays Concrete. 02405_ M-28 Smith repairs U-05 Engineer. 02406_ U-05 Engineer lays Concrete. 02429_ System corrupted: Matter fused (-8). 02429_ U-05 Engineer lays Concrete. 02434_ U-05 Engineer builds a Wall. 02443_ U-05 Engineer lays Concrete. 02468_ System corrupted: Matter fused (-8). 02476_ Acquired 24 matter. 02480_ Penetrated by Slug. 02483_ System corrupted: Matter fused (-5). 02483_ Penetrated by Slug. Map ----- +----------------------------------------------------+ | ?????????????????????????????????????????????????? | | ????????????????????########?????????????????????? | | ?????????????????#### #?????????????????????? | | ?????????????????# + #?????????????????????? | | ?????????????????# # """ #?????????????????????? | | ?????????????????# # """ #?????????????????????? | | ?????????????????+ + """ #?????????????????????? | | ?????????????????# # #?????????????????????? | | ?????????????????# ####/###?????????????????????? | | ?????????????????# #???????????????????????? | | ?????????????????# ##### #???????????????????????? | | ?????????????????# #???# #???????????????????????? | | ?????????????????# #???# #???????????????????????? | | ?????????????????# #???# #???????????????????????? | | ?????????????????# #???# #???????###########?????? | | ?????????????????# #?###/####???## #?????? | | ?????????????????# #?# #???# *! """" #?????? | | ?????????????????# #?# #????#!! ""R" #?????? | | ?????????????????# #?# ##???#!! "" " #?????? | | ?????????????????# ### [ #???# #?????? | | ?????????????????# ##" = [ ##???# [ ####### | | ?????????????????# ###[ = ##???# ! ==! # | | ?????????######??# #?####+###????# ! """ | | ?????????# ## ##?# !############+### """ | | ?????????# # ### # """ | | ?????????# + =uh @=! / [ | | ?????????# # * ### # " " | | ?????????# ##=##?# ## # "" | | ?????????# ##!##?### #### # "" | | ??????#########/##%##???# #??# # | | ??? w =#????# ##########+############# | | ??????????##### #????# k + #???????????? | | ??????????????# #????#### ## #???????????? | | ??????????????# #???????# ## !!! #???????????? | | ????????####### #???????# ## !! #???????????? | | ? [ / ######??# ## !! #???????????? | | ??? #######/##/#[[ #??# ## #???????????? | | ????????????# #[[ #??# #####+###???????????? | | ????????????# # #??# #?# #???????????? | | ????????????# """ # #### "#" #???????????? | | ????????????# """ # + !!%[! #???????????? | | ????????????# """ # # """ #???????????? | | ????????????# # # #?# #???????????? | | ????????????######"# # #####+#####?????????? | | ?????????????????# # # ## #?????????? | | ?????????????????# #""""# ## """"" #?????????? | | ?????????????????# ###"## ## ""T"" #?????????? | | ?????????????????### # ## #?????????? | | ???????????????????#[[| # ## ########### | | ???????????????????#[|| / / !# # | +----------------------------------------------------+ Best States ------------- Heat Dissipation 31 Energy Generation 19 Energy Capacity 510 Matter Stores 300 Matter Capacity 300 Sight Range 16 Robot Scan Range 14 Terrain Scan Range 16 Terrain Scan Density 10 ECM Strength 1 Armor Coverage 150 Power Shielding 33 Evasion (%) 55 Recoil Reduction 4 Offensive Hacking 10 Item Schematics ----------------- None Robot Schematics ------------------ None Fabricated ------------ Nothing Repaired ---------- Nothing Studied --------- Rocket Launcher | -8/Materials | Hacked Alien Tech Used ----------------- None Achievements -------------- Sixth Sense Challenges ------------ None Game ------ Seed SwordMassAccelerator Manual? 0 Play Time 00:40:54 Cumulative 3.0 hours Start 2026.07.05 @ 23:07:15 End 2026.07.05 @ 23:51:29 Sessions 1 Manual Loads 0 Difficulty Rogue Special Mode None Game No. 7 Rogue 7 Adventurer 0 Explorer 0 Win Type - Total 0 Types 0/0/0/0/0/0/0/0/0/0 Lore% 9 Gallery% 12 Achievement% 15 Wizard Run 0 Options --------- Layout 0 ASCII 0 Keyboard 0 Movement Mouse Keybinds 0 Fullscreen 2 Font 24/Smallcaps Map View 76x50 Zoom Use 0% Tactical HUD 1 Map Filters NONE Filters NONE Steam 1 RUN: 8524adcc-3422-4cb1-aabe-2f481826284a